bitfinex-derivatives/quotes_SOLF0:USTF0_20250411
["timestamp","ask_amount","ask_price","bid_price","bid_amount"]
[1744377028585,54.7413,118.7,118.64,43.13269718]
[1744377028882,0.05932528,118.68,118.66,0.06379704]
[1744377029783,0.05932528,118.68,118.66,34.76339422]
[1744377029983,0.05932528,118.68,118.67,8.55862045]
[1744377030289,0.05932528,118.68,118.67,16.99022045]
[1744377031885,0.05932528,118.68,118.67,8.55862045]
[1744377032389,0.05932528,118.68,118.66,34.76339422]
[1744377033691,47.9,118.73,118.66,34.76339422]
[1744377033892,47.88,118.76,118.69,34.69959718]
[1744377034088,8.4261,118.75,118.69,34.69959718]
[1744377034289,8.4261,118.75,118.73,0.25276993]
[1744377034685,8.4261,118.75,118.73,0.30750823]
[1744377034885,8.4266,118.74,118.73,0.30750823]
[1744377035088,0.05840187,118.75,118.65,34.69959718]
[1744377035289,2.0827,118.77,118.65,34.69959718]
[1744377035489,47.88,118.76,118.66,8.54836742]
[1744377035690,34.69959718,118.75,118.66,8.54836742]
[1744377035994,8.4299,118.7,118.65,34.69959718]
[1744377036190,8.4299,118.7,118.66,0.05789258]
[1744377036398,0.06213611,118.69,118.66,0.05789258]
[1744377037297,8.4316,118.67,118.66,0.05789258]
[1744377037593,47.88,118.68,118.66,0.05789258]
[1744377037789,56.3112,118.68,118.66,0.05789258]
[1744377038095,47.88,118.68,118.66,0.05789258]
[1744377038295,82.57959718,118.68,118.59,11.48527893]
[1744377038495,34.69959718,118.66,118.59,11.48527893]
[1744377038687,8.4365,118.6,118.59,11.48527893]
[1744377038892,8.4365,118.6,118.59,8.02867893]
[1744377039092,8.4365,118.6,118.59,4.57207893]
[1744377039290,7.22165356,118.59,118.54,8.4404]
[1744377039491,7.22165356,118.59,118.58,0.05616239]
[1744377039697,0.05630508,118.58,118.55,0.06380487]
[1744377041799,46.39630508,118.58,118.55,0.06380487]
[1744377042103,8.4394,118.56,118.55,0.06380487]
[1744377045001,8.4432,118.51,118.49,34.69959718]
[1744377045507,8.4426,118.52,118.49,34.69959718]
[1744377045705,81.03959718,118.58,118.49,34.69959718]
[1744377046107,8.4415,118.53,118.52,0.05612393]
[1744377052105,46.36,118.54,118.44,34.69959718]
[1744377052305,83.15469718,118.54,118.46,8.4465]
[1744377052607,8.4453,118.48,118.44,34.69959718]
[1744377052807,48.4551,118.54,118.44,34.69959718]
[1744377053210,8.4449,118.49,118.48,0.02761143]
[1744377054804,0.0570634,118.5,118.48,0.02761143]
[1744377055506,8.5012634,118.5,118.48,0.02761143]
[1744377055710,0.0570634,118.5,118.48,0.02761143]
[1744377056209,0.0570634,118.5,118.48,8.47211143]
[1744377056509,0.0570634,118.5,118.48,0.02761143]
[1744377056703,0.0570634,118.5,118.49,8.4444]
[1744377057310,654.5552,118.57,118.48,34.72720861]
[1744377057507,654.5552,118.57,118.48,34.69959718]
[1744377057699,654.5552,118.57,118.51,8.4425]
[1744377058203,8.4416,118.53,118.51,8.4425]
[1744377058611,8.4416,118.53,118.51,8.49780939]
[1744377059600,8.4422,118.52,118.51,0.05530939]
[1744377060509,0.0534444,118.55,118.51,0.05530939]
[1744377060905,8.4412,118.54,118.51,0.05530939]
[1744377061215,0.0534444,118.55,118.52,8.4416]
[1744377061409,0.0534444,118.55,118.52,34.69959718]
[1744377061911,8.4938444,118.55,118.52,34.69959718]
[1744377062414,0.0534444,118.55,118.53,8.4412]
[1744377062915,0.0534444,118.55,118.51,0.05530939]
[1744377062916,0.0534444,118.55,118.54,34.69959718]
[1744377063208,44.82,118.6,118.54,34.69959718]
[1744377063408,8.4376,118.59,118.57,8.4386]
[1744377063812,2.2391,118.62,118.55,62.0]
[1744377064008,2.2391,118.62,118.55,70.4399]
[1744377064210,0.05979289,118.6,118.57,0.05825975]
[1744377064410,8.4384,118.58,118.57,0.05825975]
[1744377064613,0.05979289,118.6,118.57,0.05825975]
[1744377065209,0.05979289,118.6,118.59,8.4373]
[1744377065718,0.05979289,118.6,118.58,8.4376]
[1744377066115,8.49639289,118.6,118.58,8.4376]
[1744377066417,0.05979289,118.6,118.58,8.4376]
[1744377066617,8.4378,118.59,118.57,0.05825975]
[1744377067007,0.05979289,118.6,118.57,0.05825975]
[1744377067212,2.1131,118.65,118.58,34.69959718]
[1744377067411,2.1131,118.65,118.6,34.69959718]
[1744377067812,8.4341,118.64,118.61,8.4354]
[1744377068118,43.32,118.66,118.6,34.69959718]
[1744377068419,0.05600022,118.64,118.62,0.06023559]
[1744377068819,8.4344,118.63,118.62,0.06023559]
[1744377069321,0.05600022,118.64,118.62,0.06023559]
[1744377069720,8.4344,118.63,118.62,0.06023559]
[1744377070917,0.05600022,118.64,118.54,394.69959718]
[1744377070918,34.7555974,118.64,118.54,394.69959718]
[1744377071216,43.3,118.63,118.55,8.58868243]
[1744377071520,43.3,118.63,118.57,8.4385]
[1744377071917,8.4371,118.6,118.59,0.06273376]
[1744377072518,8.4394,118.56,118.52,36.16723946]
[1744377072715,43.3,118.59,118.52,36.16723946]
[1744377072915,43.3,118.59,118.53,17.03607974]
[1744377073121,8.4397,118.56,118.53,17.03607974]
[1744377073316,43.3,118.59,118.53,17.03607974]
[1744377073522,8.4402,118.55,118.53,8.4412]
[1744377073723,0.06195993,118.57,118.53,8.4412]
[1744377073915,0.06195993,118.57,118.53,0.06122707]
[1744377074317,8.4405,118.55,118.53,0.06122707]
[1744377074927,8.4408,118.54,118.53,0.06122707]
[1744377076522,2.18945993,118.57,118.53,0.06122707]
[1744377076726,0.06195993,118.57,118.53,0.06122707]
[1744377076929,8.4397,118.56,118.53,8.50242707]
[1744377077228,0.06195993,118.57,118.53,0.06122707]
[1744377077922,8.4397,118.56,118.53,8.50232707]
[1744377078226,8.4397,118.56,118.53,0.06122707]
[1744377078428,0.06195993,118.57,118.53,0.06122707]
[1744377079430,34.69959718,118.54,118.44,126.33806823]
[1744377079624,687.78429718,118.53,118.44,126.33806823]
[1744377079929,8.4464,118.47,118.46,126.33806823]
[1744377080619,8.4464,118.47,118.46,118.00706823]
[1744377081229,8.4464,118.47,118.46,113.87236823]
[1744377081626,0.0530869,118.48,118.46,113.87236823]
[1744377081933,43.3,118.47,118.46,113.87236823]
[1744377082224,51.7458,118.47,118.46,113.87236823]
[1744377082431,77.99959718,118.47,118.45,137.8233471]
[1744377082722,77.99959718,118.47,118.45,134.4837471]
[1744377082723,8.4465,118.46,118.45,134.4837471]
[1744377083723,8.4465,118.46,118.45,121.2157471]
[1744377083927,8.4472,118.45,118.44,183.90694452]
[1744377084228,34.69959718,118.46,118.37,10.5284]
[1744377084431,34.69959718,118.44,118.37,2.0758]
[1744377084625,43.37744676,118.43,118.37,2.0758]
[1744377084924,43.37744676,118.43,118.37,10.5286]
[1744377085118,43.37744676,118.43,118.37,2.0758]
[1744377085333,43.37744676,118.43,118.37,10.5284]
[1744377085628,43.37744676,118.43,118.37,2.0758]
[1744377086131,8.4516,118.39,118.37,2.0758]
[1744377086330,43.32,118.43,118.37,2.0758]
[1744377086625,0.05910599,118.39,118.37,10.5285]
[1744377086827,0.05910599,118.39,118.37,2.0758]
[1744377087331,0.05910599,118.39,118.35,30.82160763]
[1744377087625,0.05910599,118.39,118.32,2.6848]
[1744377087827,8.4548,118.35,118.32,2.6848]
[1744377088023,8.4548,118.35,118.32,11.1412]
[1744377088224,8.50989678,118.35,118.32,11.1412]
[1744377089629,0.05509678,118.35,118.33,8.4554]
[1744377089928,0.05509678,118.35,118.32,2.6848]
[1744377090324,8.4555,118.34,118.33,20.59603107]
[1744377090723,8.4555,118.34,118.33,20.5966945]
[1744377091231,8.4555,118.34,118.33,16.84313105]
[1744377091430,8.4555,118.34,118.33,20.58532861]
[1744377091620,51.8155,118.34,118.33,16.84313105]
[1744377092129,51.8155,118.34,118.33,8.69247461]
[1744377092535,51.8155,118.34,118.33,7.52567461]
[1744377093426,8.4563,118.33,118.29,8.4583]
[1744377093631,43.36,118.34,118.3,11.81254352]
[1744377093832,0.06101523,118.32,118.29,8.4583]
[1744377094028,0.06101523,118.32,118.3,11.81243032]
[1744377094231,43.36,118.34,118.29,34.69959718]
[1744377094434,43.36,118.34,118.3,14.57507353]
[1744377094635,8.4558,118.33,118.3,2.7681]
[1744377094931,8.4558,118.33,118.3,11.2254]
[1744377095130,51.8154,118.34,118.3,2.7681]
[1744377095329,0.05706248,118.33,118.31,8.52022312]
[1744377095924,0.05706248,118.33,118.32,8.4565]
[1744377096127,0.05706248,118.33,118.31,0.06302312]
[1744377096434,650.12,118.38,118.31,34.7626203]
[1744377096628,8.4544,118.36,118.31,34.7626203]
[1744377096828,650.12,118.38,118.31,34.7626203]
[1744377097138,650.12,118.38,118.31,0.06302312]
[1744377097436,0.06342344,118.36,118.31,0.06302312]
[1744377097632,8.4562,118.33,118.31,0.06302312]
[1744377098035,0.06321409,118.33,118.31,0.06302312]
[1744377098233,0.06321409,118.33,118.31,8.51992312]
[1744377098435,0.06321409,118.33,118.31,0.06302312]
[1744377098630,8.51911409,118.33,118.31,0.06302312]
[1744377098830,0.06321409,118.33,118.31,0.06302312]
[1744377099739,0.06321409,118.33,118.31,8.51982312]
[1744377100944,21.3984212,118.4,118.31,0.06302312]
[1744377101143,21.3984212,118.4,118.3,2.7681]
[1744377101651,8.4548,118.35,118.3,2.7681]
[1744377101949,41.9,118.36,118.33,8.4557]
[1744377102254,21.3984212,118.4,118.33,8.4557]
[1744377102255,0.061757,118.34,118.33,8.4557]
[1744377102543,0.05889263,118.35,118.32,8.51740922]
[1744377102750,8.51329263,118.35,118.32,8.51740922]
[1744377102941,0.05889263,118.35,118.32,0.06120922]
[1744377103248,0.05889263,118.35,118.33,8.4557]
[1744377103442,41.9,118.41,118.33,21.3984212]
[1744377103643,8.4522,118.39,118.35,8.4541]
[1744377103843,608.46,118.44,118.35,21.3984212]
[1744377104046,650.36,118.44,118.37,21.3984212]
[1744377104248,8.4494,118.42,118.39,8.4513]
[1744377104542,650.36,118.44,118.39,0.06462253]
[1744377104747,0.05509456,118.42,118.4,8.4502]
[1744377105052,41.9,118.44,118.39,21.46304373]
[1744377105248,21.3984212,118.49,118.39,21.46304373]
[1744377105249,41.9,118.47,118.39,21.46304373]
[1744377105444,8.4475,118.45,118.41,8.4494]
[1744377105845,8.4475,118.45,118.42,8.4491]
[1744377106045,0.06419382,118.45,118.42,0.06481001]
[1744377106247,0.06419382,118.45,118.42,2.81801001]
[1744377106751,0.06419382,118.45,118.43,8.4482]
[1744377106953,0.06419382,118.45,118.41,16.28785121]
[1744377107144,0.06419382,118.45,118.4,2.7499]
[1744377107548,8.51179382,118.45,118.42,8.4493]
[1744377107952,8.51179382,118.45,118.42,8.50946439]
[1744377109159,0.06419382,118.45,118.43,8.4484]
[1744377109657,0.06419382,118.45,118.42,0.06016439]
[1744377109658,8.51179382,118.45,118.42,8.50926439]
[1744377110160,0.06419382,118.45,118.42,0.06016439]
[1744377110860,8.4487,118.43,118.42,0.06016439]
[1744377111062,0.06419382,118.45,118.42,0.06016439]
[1744377111459,8.4487,118.43,118.42,0.06016439]
[1744377112459,48.8687,118.43,118.42,0.06016439]
[1744377113061,8.4512,118.4,118.37,8.4525]
[1744377113361,40.42,118.43,118.35,40.42]
[1744377113661,8.4516,118.39,118.36,8.4533]
[1744377114055,21.3984212,118.48,118.37,21.3984212]
[1744377114359,0.06337317,118.44,118.39,21.3984212]
[1744377114559,8.51167317,118.44,118.41,8.51197506]
[1744377114861,0.06337317,118.44,118.41,0.06227506]
[1744377115159,8.51167317,118.44,118.41,0.06227506]
[1744377115664,0.06337317,118.44,118.42,8.4492]
[1744377116062,0.06337317,118.44,118.41,0.06227506]
[1744377116268,0.06337317,118.44,118.42,8.4494]
[1744377116563,0.06337317,118.44,118.42,8.61815235]
[1744377116763,0.06337317,118.44,118.43,8.4487]
[1744377117559,8.447,118.46,118.43,8.4487]
[1744377117865,8.447,118.46,118.44,8.64368043]
[1744377118063,648.96,118.5,118.44,8.64368043]
[1744377118265,127.69398475,118.52,118.45,33.28120084]
[1744377118466,127.69398475,118.52,118.46,20.52646007]
[1744377118766,0.05431823,118.5,118.47,8.70099243]
[1744377119266,0.05431823,118.5,118.48,8.15085118]
[1744377119455,0.05431823,118.5,118.47,17.14649243]
[1744377119654,8.49831823,118.5,118.48,16.7945538]
[1744377119861,0.05431823,118.5,118.48,8.64368043]
[1744377120169,127.69398475,118.52,118.49,20.54729097]
[1744377120370,138.5635033,118.53,118.5,11.90361054]
[1744377120561,138.5635033,118.53,118.52,8.4422]
[1744377120766,230.9391721,118.54,118.52,11.89519999]
[1744377120968,230.9391721,118.54,118.53,20.53888042]
[1744377121168,99.17036992,118.56,118.53,20.53888042]
[1744377121363,0.05938779,118.55,118.53,8.64368043]
[1744377121564,8.49988779,118.55,118.54,8.64368043]
[1744377122570,8.49988779,118.55,118.52,0.05361223]
[1744377122766,8.4409,118.54,118.52,0.05361223]
[1744377122972,0.05938779,118.55,118.52,0.05361223]
[1744377123167,0.05938779,118.55,118.53,8.62661899]
[1744377123376,8.4415,118.54,118.52,0.05361223]
[1744377125371,8.4415,118.53,118.52,0.05361223]
[1744377125566,8.4415,118.53,118.52,8.65862378]
[1744377126161,0.05938779,118.55,118.52,8.65862378]
[1744377126573,0.05938779,118.55,118.52,0.05361223]
[1744377126774,8.50008779,118.55,118.52,8.49551223]
[1744377128669,8.4409,118.54,118.52,0.05361223]
[1744377129772,8.49988779,118.55,118.52,8.49581223]
[1744377130675,0.05938779,118.55,118.52,0.05361223]
[1744377130976,0.05938779,118.55,118.46,406.1144]
[1744377130977,21.45780899,118.55,118.46,5.7344]
[1744377131163,21.3984212,118.55,118.46,5.7344]
[1744377131368,21.3984212,118.53,118.47,17.03422798]
[1744377131569,40.38,118.52,118.47,17.03422798]
[1744377131775,40.38,118.52,118.47,8.4455]
[1744377131973,0.06147975,118.51,118.46,11.3083]
[1744377132275,0.06147975,118.51,118.48,0.05942159]
[1744377132476,8.4444,118.49,118.48,0.05942159]
[1744377142680,47.3641,118.5,118.48,0.05942159]
[1744377142870,0.06147975,118.51,118.48,0.05942159]
[1744377143173,607.78,118.56,118.49,21.3984212]
[1744377143376,38.92,118.57,118.51,21.3984212]
[1744377143772,8.4394,118.56,118.51,21.3984212]
[1744377143974,38.92,118.57,118.49,24.2337212]
[1744377144281,8.4404,118.55,118.5,8.60491197]
[1744377144483,0.06303081,118.54,118.52,0.06117726]
[1744377145081,0.06303081,118.54,118.53,8.4415]
[1744377146975,0.06303081,118.54,118.52,8.50317726]
[1744377147281,0.06303081,118.54,118.52,0.06117726]
[1744377147479,38.92,118.53,118.49,8.444]
[1744377147988,38.92,118.53,118.46,44.4421]
[1744377148181,60.3184212,118.53,118.42,362.8038]
[1744377148384,21.3984212,118.51,118.43,20.46063743]
[1744377148585,8.4458,118.48,118.44,8.10442412]
[1744377148789,0.05501472,118.48,118.46,0.0538456]
[1744377149088,0.05501472,118.48,118.46,8.4997456]
[1744377149883,0.05501472,118.48,118.47,8.62886054]
[1744377150277,0.05501472,118.48,118.47,17.07466054]
[1744377150477,0.05501472,118.48,118.47,8.62886054]
[1744377151487,0.05501472,118.48,118.47,17.07466054]
[1744377151889,2.9036,118.52,118.49,8.4439]
[1744377152083,607.76,118.55,118.49,8.4439]
[1744377152385,8.4413,118.54,118.5,8.62886054]
[1744377152586,8.4413,118.54,118.51,8.4424]
[1744377153188,8.49612098,118.54,118.51,8.49760775]
[1744377153580,8.49612098,118.54,118.52,8.63914769]
[1744377153786,0.05482098,118.54,118.52,8.63914769]
[1744377154283,8.49602098,118.54,118.51,8.49760775]
[1744377155083,8.49602098,118.54,118.52,8.64253414]
[1744377155689,8.49602098,118.54,118.51,8.49770775]
[1744377156089,8.4415,118.53,118.51,8.49770775]
[1744377156790,8.4415,118.53,118.52,8.65322289]
[1744377158085,8.4422,118.52,118.51,0.05520775]
[1744377158485,38.92,118.53,118.47,8.4456]
[1744377158689,38.92,118.53,118.48,11.90566059]
[1744377158984,38.92,118.53,118.47,8.4456]
[1744377159189,38.92,118.53,118.48,8.15239543]
[1744377159389,38.92,118.53,118.49,8.15139033]
[1744377159584,0.05683644,118.52,118.5,8.14995411]
[1744377159792,8.4432,118.51,118.49,0.05804708]
[1744377160089,0.05683644,118.52,118.5,16.5935547]
[1744377160288,8.49943644,118.52,118.5,8.4436]
[1744377160478,0.05683644,118.52,118.49,8.50204708]
[1744377160776,0.05683644,118.52,118.5,8.1483999]
[1744377160978,0.05683644,118.52,118.49,8.50204708]
[1744377161178,8.443,118.51,118.5,8.14959899]
[1744377161377,8.443,118.51,118.49,0.05804708]
[1744377161781,8.443,118.51,118.49,8.50234708]
[1744377164490,8.49943644,118.52,118.5,8.4434]
[1744377165191,0.05683644,118.52,118.49,0.05804708]
[1744377165393,0.05683644,118.52,118.5,11.92003054]
[1744377165588,0.05683644,118.52,118.51,8.16167364]
[1744377165788,8.49903644,118.52,118.51,8.16167364]
[1744377166585,8.49903644,118.52,118.51,8.1614159]
[1744377168581,8.49903644,118.52,118.5,8.4433]
[1744377170189,0.05683644,118.52,118.49,0.05804708]
[1744377170385,0.05683644,118.52,118.5,11.928169]
[1744377170588,0.05683644,118.52,118.51,11.92769824]
[1744377170989,8.49903644,118.52,118.51,11.92769824]
[1744377171193,0.05683644,118.52,118.49,0.05804708]
[1744377171388,0.05683644,118.52,118.5,8.17060276]
[1744377171590,0.05683644,118.52,118.49,0.05804708]
[1744377171983,8.4437,118.5,118.49,0.05804708]
[1744377172183,8.4437,118.5,118.49,11.99247041]
[1744377175293,37.53683644,118.52,118.49,11.99247041]
[1744377175591,93.04858425,118.62,118.5,76.0968894]
[1744377175796,93.04858425,118.62,118.58,13.33852153]
[1744377175995,93.04858425,118.62,118.59,8.15900196]
[1744377176198,93.04858425,118.62,118.6,8.4361]
[1744377176595,93.04858425,118.62,118.61,4.71968261]
[1744377176894,93.11204844,118.62,118.61,22.54604281]
[1744377177094,93.11204844,118.62,118.61,44.69179328]
[1744377177301,88.63354844,118.62,118.61,31.35327175]
[1744377178995,8.4323,118.66,118.63,8.434]
[1744377179300,26.94825224,118.68,118.61,8.80722894]
[1744377179597,8.4344,118.63,118.62,14.05608989]
[1744377180594,8.4344,118.63,118.62,22.82977218]
[1744377180793,8.4344,118.63,118.62,22.83025441]
[1744377181101,8.4344,118.63,118.62,14.05657212]
[1744377181698,45.88,118.63,118.56,360.0]
[1744377181899,24.13475224,118.62,118.57,4.42593513]
[1744377182199,8.4373,118.59,118.58,4.42593513]
[1744377182500,24.13475224,118.62,118.58,8.77681385]
[1744377182696,8.4373,118.59,118.58,8.77681385]
[1744377182994,37.46,118.59,118.57,0.06269307]
[1744377183202,8.438,118.58,118.57,0.06269307]
[1744377183694,8.44,118.58,118.51,1.68762129]
[1744377183898,666.24775224,118.59,118.52,4.33460124]
[1744377184096,666.24775224,118.59,118.53,13.11391383]
[1744377184296,8.4413,118.54,118.51,10.13022129]
[1744377184494,8.4413,118.54,118.52,4.33225503]
[1744377184694,8.5053555,118.54,118.51,8.50002559]
[1744377184895,8.5053555,118.54,118.52,4.26722307]
[1744377185092,8.5053555,118.54,118.52,8.78194667]
[1744377185293,8.4415,118.53,118.52,8.78194667]
[1744377185490,8.4415,118.53,118.52,13.05021146]
[1744377185704,8.4415,118.53,118.52,8.78194667]
[1744377185893,8.4415,118.53,118.51,0.05742559]
[1744377186097,0.0640555,118.54,118.51,0.05742559]
[1744377186797,8.4422,118.52,118.51,0.05742559]
[1744377187703,8.4422,118.52,118.51,8.84924092]
[1744377187906,8.4422,118.52,118.51,0.05742559]
[1744377189404,8.4448,118.49,118.46,8.4461]
[1744377189612,37.46,118.51,118.47,4.1138188]
[1744377189906,37.46,118.51,118.48,8.66493517]
[1744377190302,37.46,118.51,118.45,2.7424]
[1744377190603,8.5004744,118.49,118.47,0.05764264]
[1744377190803,0.0557744,118.49,118.47,0.05764264]
[1744377191003,8.5005744,118.49,118.47,0.05764264]
[1744377191204,8.5005744,118.49,118.48,8.66590425]
[1744377192714,8.5005744,118.49,118.47,0.05764264]
[1744377194011,8.4451,118.48,118.47,0.05764264]
[1744377194407,8.4451,118.48,118.47,8.71919396]
[1744377195012,8.4451,118.48,118.47,0.05764264]
[1744377195216,8.4491,118.43,118.41,2.6943]
[1744377195414,8.4491,118.43,118.42,8.66157442]
[1744377195818,8.4491,118.43,118.4,2.7667]
[1744377196012,8.4483,118.44,118.4,2.7667]
[1744377196212,8.4483,118.44,118.41,8.4498]
[1744377196411,0.05984679,118.43,118.41,8.5117546]
[1744377196609,0.05984679,118.43,118.41,0.0619546]
[1744377196912,8.50864679,118.43,118.42,8.66179772]
[1744377197313,0.05984679,118.43,118.42,8.66179772]
[1744377197610,21.28775224,118.49,118.41,8.5116546]
[1744377197611,37.58,118.49,118.41,0.0619546]
[1744377197812,37.58,118.49,118.42,21.28775224]
[1744377198117,37.58,118.49,118.44,8.4479]
[1744377198418,37.58,118.49,118.42,21.28775224]
[1744377198807,0.05896673,118.47,118.44,8.50426464]
[1744377199318,8.50486673,118.47,118.44,8.50426464]
[1744377199916,8.50486673,118.47,118.45,8.4471]
[1744377200412,0.05896673,118.47,118.45,8.4471]
[1744377200917,8.50476673,118.47,118.45,8.4471]
[1744377202619,0.05896673,118.47,118.45,8.4471]
[1744377202815,0.05896673,118.47,118.44,0.05706464]
[1744377203221,8.50516673,118.47,118.44,0.05706464]
[1744377203421,0.05896673,118.47,118.44,0.05706464]
[1744377203626,0.05896673,118.47,118.44,8.50446464]
[1744377203815,8.50516673,118.47,118.44,0.05706464]
[1744377204416,8.50516673,118.47,118.45,8.4472]
[1744377205123,8.50516673,118.47,118.44,8.50456464]
[1744377205323,8.4465,118.46,118.44,8.50456464]
[1744377206523,8.50506673,118.47,118.44,8.50456464]
[1744377206822,0.05896673,118.47,118.44,8.50456464]
[1744377207324,8.4469,118.46,118.44,8.50456464]
[1744377207525,0.05896673,118.47,118.44,0.05706464]
[1744377207822,8.4472,118.45,118.44,0.05706464]
[1744377208022,37.58,118.45,118.4,11.2172]
[1744377208722,37.58,118.45,118.4,8.4505]
[1744377209127,0.05623803,118.44,118.41,0.06071587]
[1744377209326,8.4492,118.43,118.41,0.06071587]
[1744377209525,0.05623803,118.44,118.41,0.06071587]
[1744377209827,8.4494,118.42,118.41,0.06071587]
[1744377210422,37.58,118.43,118.35,2.9871]
[1744377210923,8.4518,118.39,118.37,8.4529]
[1744377211319,37.58,118.43,118.35,2.9871]
[1744377211619,0.06336984,118.39,118.37,0.05331915]
[1744377211823,645.58,118.45,118.37,0.05331915]
[1744377212019,8.4489,118.43,118.36,21.37274417]
[1744377212324,645.58,118.45,118.36,21.37274417]
[1744377212524,645.58,118.45,118.41,8.4498]
[1744377212726,645.58,118.45,118.37,37.6]
[1744377212927,0.06093046,118.44,118.42,0.05731978]
[1744377213127,8.4491,118.43,118.42,0.05731978]
[1744377214530,0.06093046,118.44,118.36,21.37274417]
[1744377214531,8.4497,118.42,118.36,21.37274417]
[1744377214824,37.6,118.45,118.4,8.4502]
[1744377215025,8.4491,118.43,118.36,21.37274417]
[1744377215526,0.05938782,118.41,118.38,0.06088794]
[1744377215927,0.05938782,118.41,118.4,8.4508]
[1744377217822,0.05938782,118.41,118.38,0.06088794]
[1744377218027,21.37274417,118.39,118.34,2.8473]
[1744377218216,21.37274417,118.39,118.31,1.4700602]
[1744377218527,2.9549,118.4,118.33,21.37274417]
[1744377218728,8.4519,118.39,118.35,8.454]
[1744377219023,2.9549,118.4,118.35,8.454]
[1744377219229,8.51345837,118.38,118.36,0.02024304]
[1744377221226,8.4529,118.37,118.36,0.02024304]
[1744377222127,46.0529,118.37,118.36,0.02024304]
[1744377223328,0.06105837,118.38,118.36,0.02024304]
[1744377223837,8.51365837,118.38,118.36,0.02024304]
[1744377225734,8.4529,118.37,118.36,0.02024304]
[1744377227334,8.4529,118.37,118.3,4.3090397]
[1744377227335,8.4563,118.33,118.3,2.8387]
[1744377227536,8.4563,118.33,118.3,11.2962]
[1744377227735,8.4563,118.33,118.3,2.8387]
[1744377227938,8.4555,118.34,118.3,2.8387]
[1744377228133,38.12,118.35,118.3,2.8387]
[1744377228330,8.4554,118.34,118.3,2.8387]
[1744377228530,0.05338083,118.34,118.3,2.8387]
[1744377228931,8.50878083,118.34,118.3,2.8387]
[1744377229139,0.05338083,118.34,118.31,8.4567]
[1744377229439,8.50888083,118.34,118.31,8.4567]
[1744377229738,8.50888083,118.34,118.3,2.8387]
[1744377230238,8.50888083,118.34,118.31,8.4571]
[1744377230436,0.05338083,118.34,118.3,2.8387]
[1744377230636,0.05338083,118.34,118.3,40.9587]
[1744377230939,0.05338083,118.34,118.33,8.4558]
[1744377231438,8.4537,118.36,118.3,40.9587]
[1744377231634,38.12,118.38,118.31,21.37274417]
[1744377232133,38.12,118.38,118.3,40.9587]
[1744377232134,2.8921,118.4,118.33,21.37274417]
[1744377232333,3.67053177,118.39,118.33,21.37274417]
[1744377232535,0.05753567,118.38,118.35,21.42612501]
[1744377232739,649.0249,118.44,118.36,2.8895]
[1744377233039,0.0586325,118.38,118.36,8.4533]
[1744377233238,21.37274417,118.43,118.35,2.784]
[1744377233440,0.05394788,118.38,118.36,0.05338084]
[1744377233630,38.12,118.4,118.36,0.05338084]
[1744377233839,0.06100793,118.38,118.36,0.05338084]
[1744377234237,0.06100793,118.38,118.37,8.4529]
[1744377235536,0.06100793,118.38,118.36,0.05338084]
[1744377236442,0.06100793,118.38,118.37,8.4529]
[1744377240745,0.06100793,118.38,118.36,0.05338084]
[1744377241044,8.51360793,118.38,118.36,0.05338084]
[1744377241239,8.51360793,118.38,118.36,8.50698084]
[1744377241437,0.06100793,118.38,118.36,8.50698084]
[1744377241741,0.06100793,118.38,118.36,0.05338084]
[1744377242242,8.51370793,118.38,118.36,0.05338084]
[1744377242445,0.06100793,118.38,118.36,0.05338084]
[1744377242745,38.12,118.41,118.36,0.05338084]
[1744377242944,3.68001414,118.4,118.37,13.36689985]
[1744377243449,3.68001414,118.4,118.39,8.4515]
[1744377243744,3.68001414,118.4,118.36,13.42028069]
[1744377244145,12.13091414,118.4,118.38,8.4517]
[1744377244339,8.4509,118.4,118.38,8.4517]
[1744377245448,46.62627255,118.41,118.36,13.42028069]
[1744377245645,3.68336658,118.4,118.36,13.42028069]
[1744377245846,12.13456658,118.4,118.38,8.4522]
[1744377246049,8.4512,118.4,118.38,8.4522]
[1744377246249,38.17567255,118.41,118.36,13.42028069]
[1744377246547,12.13622261,118.4,118.37,8.4525]
[1744377246749,8.4514,118.4,118.37,8.4525]
[1744377247151,3.68641639,118.39,118.37,8.4525]
[1744377247647,3.68641639,118.39,118.38,8.4522]
[1744377247849,8.4515,118.39,118.36,13.42028069]
[1744377248148,8.4515,118.39,118.36,0.05338084]
[1744377248450,8.4515,118.4,118.36,0.05338084]
[1744377248649,3.68830347,118.39,118.36,0.05338084]
[1744377248850,3.68830347,118.39,118.37,8.4525]